[Event "FIDE Womens Grand Swiss 2023"]
[Site "Douglas/Isle of Man"]
[Date "2023.11.02"]
[Round "8.16"]
[White "Hoang, Thanh Trang"]
[Black "Guichard, Pauline"]
[Result "0-1"]
[ECO "E05"]
[WhiteElo "2398"]
[BlackElo "2358"]
[Annotator "ChessBase"]
[PlyCount "146"]
[EventDate "2023.10.04"]
[EventType "swiss"]
[EventCountry "GBR"]
[SourceTitle "playchess.com"]
[Source "ChessBase"]
[SourceQuality "1"]
[TimeControl "40/6000+30:20/3000+30:900+30"]

1. d4 {[%emt 0:10:07]} Nf6 {[%emt 0:10:08]} 2. Nf3 {[%emt 0:00:24]} d5 {[%emt 0:00:17]} 3. c4 {[%emt 0:00:51]} e6 {[%emt 0:00:15]} 4. g3 {[%emt 0:00:22]} Be7 {[%emt 0:00:17]} 5. Bg2 {[%emt 0:00:31]} O-O {[%emt 0:00:30]} 6. O-O {[%emt 0:00:32]} dxc4 {[%emt 0:00:12]} 7. Qc2 {[%emt 0:00:39]} b5 {[%emt 0:00:32]} 8. a4 {[%emt 0:04:15]} b4 {[%emt 0:00:30]} 9. Nfd2 {[%emt 0:01:28]} Nd5 {[%emt 0:00:38]} 10. Nxc4 {[%emt 0:01:42]} c5 {[%emt 0:00:34]} 11. e4 {[%emt 0:05:36]} Nb6 {[%emt 0:01:22]} 12. dxc5 {[%emt 0:03:48]} Nxc4 {[%emt 0:16:33]} 13. e5 {[%emt 0:04:43]} Ba6 {[%emt 0:11:44]} 14. Bxa8 {[%emt 0:01:20]} Nd7 {[%emt 0:00:31]} 15. Bg2 {[%emt 0:04:15]} Nxc5 {[%emt 0:05:49]} 16. Rd1 {[%emt 0:04:35]} b3 {[%emt 0:13:58]} 17. Qe2 {[%emt 0:05:02]} Qb8 {[%emt 0:04:44]} 18. Nc3 {[%emt 0:09:15]} Na3 {[%emt 0:04:43]} 19. Qh5 {[%emt 0:06:56]} Nc2 {[%emt 0:00:07]} 20. Rb1 {[%emt 0:00:23]} g6 {[%emt 0:01:03]} 21. Qh6 {[%emt 0:02:55]} Qxe5 {[%emt 0:01:42]} 22. Bf4 {[%emt 0:00:57]} Qf5 {[%emt 0:01:59]} 23. Bh3 {[%emt 0:09:50]} Qf6 {[%emt 0:00:21]} 24. Rd5 {[%emt 0:04:15]} Nd4 {[%emt 0:07:10]} 25. Bg4 {[%emt 0:01:35]} Nf3+ {[%emt 0:07:04]} 26. Bxf3 {[%emt 0:01:04]} exd5 {[%emt 0:00:03]} 27. Nxd5 {[%emt 0:01:00]} Qe6 {[%emt 0:00:05]} 28. Bd2 {[%emt 0:08:54]} Re8 {[%emt 0:16:56]} 29. Nc7 {[%emt 0:08:41]} Qf5 {[%emt 0:00:16]} 30. Re1 {[%emt 0:01:34]} Rd8 {[%emt 0:02:35]} 31. Rxe7 {[%emt 0:00:41]} Qxf3 {[%emt 0:00:08]} 32. Ne8 {[%emt 0:01:13]} Qd1+ {[%emt 0:00:07]} 33. Re1 {[%emt 0:00:26]} Qxe1+ {[%emt 0:00:14]} 34. Bxe1 {[%emt 0:00:10]} Rxe8 {[%emt 0:00:03]} 35. Bc3 {[%emt 0:00:25]} Ne6 {[%emt 0:00:05]} 36. Qe3 {[%emt 0:01:00]} Rd8 {[%emt 0:01:15]} 37. Qxa7 {[%emt 0:00:42]} Rd1+ {[%emt 0:02:57]} 38. Kg2 {[%emt 0:00:11]} Bf1+ {[%emt 0:00:05]} 39. Kf3 {[%emt 0:00:08]} f5 {[%emt 0:00:04]} 40. Qb8+ {[%emt 0:06:58]} Rd8 {[%emt 0:01:07]} 41. Qxd8+ {[%emt 0:50:40]} Nxd8 {[%emt 0:51:11]} 42. Kf4 {[%emt 0:00:14]} Nc6 {[%emt 0:00:00]} 43. h4 {[%emt 0:00:00]} h5 {[%emt 0:00:00]} 44. a5 {[%emt 0:00:00]} Kf7 {[%emt 0:00:00]} 45. f3 {[%emt 0:00:00]} Be2 {[%emt 0:00:00]} 46. Ke3 {[%emt 0:00:00]} Ba6 {[%emt 0:00:00]} 47. Kf4 {[%emt 0:00:00]} Ke6 {[%emt 0:00:00]} 48. g4 {[%emt 0:00:00]} fxg4 {[%emt 0:00:00]} 49. fxg4 {[%emt 0:00:00]} hxg4 {[%emt 0:00:00]} 50. Kxg4 {[%emt 0:00:00]} Be2+ {[%emt 0:00:00]} 51. Kf4 {[%emt 0:00:00]} Kd5 {[%emt 0:00:00]} 52. Ke3 {[%emt 0:00:00]} Bh5 {[%emt 0:01:26]} 53. a6 {[%emt 0:00:00]} Kd6 {[%emt 0:01:35]} 54. Kd3 {[%emt 0:00:00]} Kc7 {[%emt 0:00:50]} 55. Kc4 {[%emt 0:00:00]} Bd1 {[%emt 0:00:07]} 56. Kc5 {[%emt 0:00:00]} Be2 {[%emt 0:00:26]} 57. Kd5 {[%emt 0:00:00]} Bxa6 {[%emt 0:00:20]} 58. Bf6 {[%emt 0:00:00]} Kd7 {[%emt 0:01:07]} 59. Bc3 {[%emt 0:00:00]} Be2 {[%emt 0:01:04]} 60. Bf6 {[%emt 0:00:00]} Bg4 {[%emt 0:00:57]} 61. Kc4 {[%emt 0:06:03]} Be6+ {[%emt 0:15:09]} 62. Kc5 {[%emt 0:00:31]} Bg8 {[%emt 0:01:06]} 63. Bc3 {[%emt 0:00:16]} Ne7 {[%emt 0:00:39]} 64. Kd4 {[%emt 0:00:23]} Ke6 {[%emt 0:01:01]} 65. Ke4 {[%emt 0:00:06]} Nd5 {[%emt 0:00:47]} 66. Bd4 {[%emt 0:00:18]} Bf7 {[%emt 0:00:10]} 67. Bh8 {[%emt 0:00:33]} Be8 {[%emt 0:01:04]} 68. Bd4 {[%emt 0:00:15]} Bb5 {[%emt 0:00:21]} 69. Bh8 {[%emt 0:01:13]} Be2 {[%emt 0:00:12]} 70. Kd4 {[%emt 0:01:02]} Bd1 {[%emt 0:00:15]} 71. Ke4 {[%emt 0:01:11]} Bc2+ {[%emt 0:00:06]} 72. Kf3 {[%emt 0:00:18]} Kf5 {[%emt 0:00:22]} 73. Bd4 {[%emt 0:00:14]} Bd1+ {[%emt 0:00:20]} 0-1

[Event "FIDE Womens Grand Swiss 2023"]
[Site "Douglas/Isle of Man"]
[Date "2023.11.02"]
[Round "8.17"]
[White "Danielian, Elina"]
[Black "Aulia, Medina Warda"]
[Result "0-1"]
[ECO "A30"]
[WhiteElo "2416"]
[BlackElo "2362"]
[Annotator "ChessBase"]
[PlyCount "50"]
[EventDate "2023.10.04"]
[EventType "swiss"]
[EventCountry "GBR"]
[SourceTitle "playchess.com"]
[Source "ChessBase"]
[SourceQuality "1"]
[TimeControl "40/6000+30:20/3000+30:900+30"]

1. Nf3 {[%emt 0:10:03]} Nf6 {[%emt 0:10:08]} 2. g3 {[%emt 0:00:06]} b6 {[%emt 0:00:10]} 3. Bg2 {[%emt 0:00:09]} Bb7 {[%emt 0:00:10]} 4. c4 {[%emt 0:00:27]} c5 {[%emt 0:00:52]} 5. O-O {[%emt 0:00:13]} g6 {[%emt 0:02:18]} 6. Nc3 {[%emt 0:03:22]} Bg7 {[%emt 0:00:13]} 7. d4 {[%emt 0:00:58]} cxd4 {[%emt 0:00:18]} 8. Qxd4 {[%emt 0:00:21]} O-O {[%emt 0:00:31]} 9. Qh4 {[%emt 0:00:47]} d6 {[%emt 0:03:21]} 10. Rd1 {[%emt 0:01:01]} Nbd7 {[%emt 0:00:37]} 11. Bh6 {[%emt 0:01:23]} Re8 {[%emt 0:00:50]} 12. Rac1 {[%emt 0:01:58]} Rc8 {[%emt 0:00:51]} 13. b3 {[%emt 0:05:09]} a6 {[%emt 0:03:24]} 14. Bh3 {[%emt 0:24:23]} Rc5 {[%emt 0:07:09]} 15. g4 {[%emt 0:13:22]} Bxf3 {[%emt 0:08:16]} 16. exf3 {[%emt 0:00:03]} Ne5 {[%emt 0:01:50]} 17. Bg2 {[%emt 0:02:20]} g5 {[%emt 0:00:39]} 18. Qh3 {[%emt 0:16:44]} Ng6 {[%emt 0:00:10]} 19. Bxg7 {[%emt 0:00:03]} Kxg7 {[%emt 0:00:05]} 20. Bf1 {[%emt 0:01:07]} h5 {[%emt 0:02:48]} 21. Bd3 {[%emt 0:09:28]} Nf4 {[%emt 0:02:29]} 22. Qf1 {[%emt 0:00:01]} hxg4 {[%emt 0:00:42]} 23. fxg4 {[%emt 0:00:03]} Nxg4 {[%emt 0:00:44]} 24. Nd5 {[%emt 0:01:19]} Rh8 {[%emt 0:09:32]} 25. Bf5 {[%emt 0:03:39]} Nxh2 {[%emt 0:00:39]} 0-1

[Event "FIDE Womens Grand Swiss 2023"]
[Site "Douglas/Isle of Man"]
[Date "2023.11.02"]
[Round "8.18"]
[White "Tania, Sachdev"]
[Black "Mkrtchyan, Mariam"]
[Result "1-0"]
[ECO "D38"]
[WhiteElo "2389"]
[BlackElo "2343"]
[Annotator "ChessBase"]
[PlyCount "129"]
[EventDate "2023.10.04"]
[EventType "swiss"]
[EventCountry "GBR"]
[SourceTitle "playchess.com"]
[Source "ChessBase"]
[SourceQuality "1"]
[TimeControl "40/6000+30:20/3000+30:900+30"]

1. d4 {[%emt 0:10:09]} Nf6 {[%emt 0:10:25]} 2. c4 {[%emt 0:00:09]} e6 {[%emt 0:00:03]} 3. Nf3 {[%emt 0:00:04]} d5 {[%emt 0:00:05]} 4. Nc3 {[%emt 0:00:04]} Bb4 {[%emt 0:00:05]} 5. Qa4+ {[%emt 0:00:54]} Nc6 {[%emt 0:00:05]} 6. a3 {[%emt 0:00:14]} Bxc3+ {[%emt 0:00:25]} 7. bxc3 {[%emt 0:00:02]} Bd7 {[%emt 0:00:07]} 8. cxd5 {[%emt 0:00:56]} exd5 {[%emt 0:00:05]} 9. Bg5 {[%emt 0:02:13]} h6 {[%emt 0:00:23]} 10. Bh4 {[%emt 0:08:40]} g5 {[%emt 0:01:20]} 11. Bg3 {[%emt 0:00:17]} Ne4 {[%emt 0:00:01]} 12. Qb3 {[%emt 0:03:20]} Bf5 {[%emt 0:06:28]} 13. Qxb7 {[%emt 0:17:42]} Na5 {[%emt 0:04:27]} 14. Qxc7 {[%emt 0:06:20]} Qxc7 {[%emt 0:02:54]} 15. Bxc7 {[%emt 0:00:07]} Nc4 {[%emt 0:00:33]} 16. e3 {[%emt 0:03:08]} Nxc3 {[%emt 0:03:59]} 17. Ne5 {[%emt 0:12:34]} Rc8 {[%emt 0:08:35]} 18. Bxc4 {[%emt 0:01:44]} Rxc7 {[%emt 0:05:58]} 19. Rc1 {[%emt 0:10:06]} f6 {[%emt 0:21:57]} 20. Rxc3 {[%emt 0:02:23]} fxe5 {[%emt 0:00:04]} 21. Bb5+ {[%emt 0:00:09]} Kd8 {[%emt 0:00:04]} 22. Kd2 {[%emt 0:04:26]} Rb7 {[%emt 0:05:06]} 23. Rc5 {[%emt 0:01:06]} exd4 {[%emt 0:08:42]} 24. exd4 {[%emt 0:06:14]} Be6 {[%emt 0:04:23]} 25. Re1 {[%emt 0:00:05]} Bf7 {[%emt 0:01:02]} 26. a4 {[%emt 0:01:56]} Rg8 {[%emt 0:02:21]} 27. Rec1 {[%emt 0:03:17]} Be6 {[%emt 0:01:55]} 28. Rc6 {[%emt 0:00:06]} Rg6 {[%emt 0:00:19]} 29. Rd6+ {[%emt 0:01:27]} Ke7 {[%emt 0:00:09]} 30. Rcc6 {[%emt 0:01:00]} Rf6 {[%emt 0:00:11]} 31. f3 {[%emt 0:00:45]} h5 {[%emt 0:00:40]} 32. Ra6 {[%emt 0:02:20]} g4 {[%emt 0:01:11]} 33. f4 {[%emt 0:03:12]} Rb6 {[%emt 0:01:08]} 34. Rdxb6 {[%emt 0:00:21]} axb6 {[%emt 0:00:01]} 35. g3 {[%emt 0:02:58]} Bf5 {[%emt 0:00:15]} 36. Ra8 {[%emt 0:00:42]} h4 {[%emt 0:01:22]} 37. Ra7+ {[%emt 0:03:34]} Kd8 {[%emt 0:02:21]} 38. Ra8+ {[%emt 0:03:22]} Ke7 {[%emt 0:01:42]} 39. Rh8 {[%emt 0:00:34]} h3 {[%emt 0:04:20]} 40. Rg8 {[%emt 0:00:35]} Re6 {[%emt 0:02:50]} 41. Re8+ {[%emt 0:50:31]} Kf7 {[%emt 0:51:04]} 42. Rxe6 {[%emt 0:00:48]} Kxe6 {[%emt 0:00:05]} 43. Be2 {[%emt 0:00:00]} Kd6 {[%emt 0:00:00]} 44. Kc3 {[%emt 0:00:00]} Kd7 {[%emt 0:00:00]} 45. Bd3 {[%emt 0:00:00]} Bxd3 {[%emt 0:00:00]} 46. Kxd3 {[%emt 0:00:00]} Ke6 {[%emt 0:00:00]} 47. Kc3 {[%emt 0:00:00]} Kf5 {[%emt 0:00:00]} 48. Kb4 {[%emt 0:00:00]} Ke4 {[%emt 0:00:00]} 49. f5 {[%emt 0:00:00]} Kxf5 {[%emt 0:00:00]} 50. Kb5 {[%emt 0:00:00]} Ke4 {[%emt 0:00:00]} 51. Kxb6 {[%emt 0:00:00]} Kf3 {[%emt 0:00:00]} 52. a5 {[%emt 0:00:00]} Kg2 {[%emt 0:00:00]} 53. a6 {[%emt 0:00:00]} Kxh2 {[%emt 0:00:00]} 54. a7 {[%emt 0:00:00]} Kg1 {[%emt 0:00:00]} 55. a8=Q {[%emt 0:00:00]} h2 {[%emt 0:00:00]} 56. Qxd5 {[%emt 0:00:00]} h1=Q {[%emt 0:00:00]} 57. Qxh1+ {[%emt 0:00:00]} Kxh1 {[%emt 0:00:00]} 58. d5 {[%emt 0:00:00]} Kg2 {[%emt 0:00:00]} 59. d6 {[%emt 0:00:00]} Kxg3 {[%emt 0:00:00]} 60. d7 {[%emt 0:00:00]} Kf2 {[%emt 0:00:00]} 61. d8=Q {[%emt 0:13:05]} g3 {[%emt 0:00:00]} 62. Qd2+ {[%emt 0:00:18]} Kf1 {[%emt 0:00:00]} 63. Qf4+ {[%emt 0:00:20]} Kg2 {[%emt 0:00:00]} 64. Kc5 {[%emt 0:00:13]} Kh1 {[%emt 0:00:00]} 65. Qh4+ {[%emt 0:00:04]} 1-0

[Event "FIDE Womens Grand Swiss 2023"]
[Site "Douglas/Isle of Man"]
[Date "2023.11.02"]
[Round "8.19"]
[White "Vantika Agrawal"]
[Black "Savitha Shri B"]
[Result "1/2-1/2"]
[ECO "E05"]
[WhiteElo "2435"]
[BlackElo "2375"]
[Annotator "ChessBase"]
[PlyCount "68"]
[EventDate "2023.10.04"]
[EventType "swiss"]
[EventCountry "GBR"]
[SourceTitle "playchess.com"]
[Source "ChessBase"]
[SourceQuality "1"]
[TimeControl "40/6000+30:20/3000+30:900+30"]

1. d4 {[%emt 0:10:01]} Nf6 {[%emt 0:10:58]} 2. c4 {[%emt 0:00:58]} e6 {[%emt 0:00:08]} 3. Nf3 {[%emt 0:00:17]} d5 {[%emt 0:00:26]} 4. g3 {[%emt 0:00:09]} Be7 {[%emt 0:00:36]} 5. Bg2 {[%emt 0:00:12]} O-O {[%emt 0:00:51]} 6. O-O {[%emt 0:00:46]} dxc4 {[%emt 0:00:30]} 7. Qa4 {[%emt 0:01:48]} a6 {[%emt 0:00:14]} 8. Qxc4 {[%emt 0:00:26]} b5 {[%emt 0:00:18]} 9. Qc2 {[%emt 0:00:13]} Bb7 {[%emt 0:00:16]} 10. Bd2 {[%emt 0:00:25]} Be4 {[%emt 0:00:43]} 11. Qc1 {[%emt 0:03:07]} c6 {[%emt 0:09:39]} 12. Be3 {[%emt 0:05:14]} Nd5 {[%emt 0:08:05]} 13. Nbd2 {[%emt 0:28:13]} Nxe3 {[%emt 0:09:08]} 14. fxe3 {[%emt 0:00:06]} Bxf3 {[%emt 0:05:15]} 15. Bxf3 {[%emt 0:01:25]} Qb6 {[%emt 0:03:37]} 16. a4 {[%emt 0:08:18]} Ra7 {[%emt 0:06:00]} 17. a5 {[%emt 0:02:12]} Qd8 {[%emt 0:01:27]} 18. Qc3 {[%emt 0:04:02]} b4 {[%emt 0:03:59]} 19. Qd3 {[%emt 0:05:08]} c5 {[%emt 0:03:07]} 20. Nb3 {[%emt 0:12:21]} Rd7 {[%emt 0:07:25]} 21. Rac1 {[%emt 0:01:23]} cxd4 {[%emt 0:04:33]} 22. exd4 {[%emt 0:00:13]} Bd6 {[%emt 0:03:43]} 23. Rc4 {[%emt 0:06:53]} Qg5 {[%emt 0:03:35]} 24. Rfc1 {[%emt 0:09:18]} Rdd8 {[%emt 0:02:40]} 25. Kg2 {[%emt 0:04:02]} h5 {[%emt 0:05:33]} 26. Qe4 {[%emt 0:02:29]} Nd7 {[%emt 0:01:41]} 27. Kf2 {[%emt 0:03:33]} Nf6 {[%emt 0:00:31]} 28. Qe3 {[%emt 0:00:44]} Qf5 {[%emt 0:01:48]} 29. Kg2 {[%emt 0:00:19]} h4 {[%emt 0:01:20]} 30. Qd3 {[%emt 0:00:23]} Qg5 {[%emt 0:04:26]} 31. Qd2 {[%emt 0:00:19]} Qg6 {[%emt 0:03:09]} 32. Qc2 {[%emt 0:00:18]} Qg5 {[%emt 0:00:44]} 33. Qd2 {[%emt 0:00:13]} Qg6 {[%emt 0:01:10]} 34. Qc2 {[%emt 0:00:10]} Qg5 {[%emt 0:01:35]} 1/2-1/2

[Event "FIDE Womens Grand Swiss 2023"]
[Site "Douglas/Isle of Man"]
[Date "2023.11.02"]
[Round "8.20"]
[White "Kiolbasa, Oliwia"]
[Black "Matnadze Bujiashvili, Ann"]
[Result "1-0"]
[ECO "B15"]
[WhiteElo "2375"]
[BlackElo "2400"]
[Annotator "ChessBase"]
[PlyCount "89"]
[EventDate "2023.10.04"]
[EventType "swiss"]
[EventCountry "GBR"]
[SourceTitle "playchess.com"]
[Source "ChessBase"]
[SourceQuality "1"]
[TimeControl "40/6000+30:20/3000+30:900+30"]

1. e4 {[%emt 0:10:03]} c6 {[%emt 0:10:13]} 2. d4 {[%emt 0:00:12]} d5 {[%emt 0:00:06]} 3. Nd2 {[%emt 0:00:19]} dxe4 {[%emt 0:00:06]} 4. Nxe4 {[%emt 0:00:07]} Nf6 {[%emt 0:00:09]} 5. Nxf6+ {[%emt 0:00:16]} exf6 {[%emt 0:00:14]} 6. c3 {[%emt 0:00:17]} Bd6 {[%emt 0:00:14]} 7. Bd3 {[%emt 0:00:24]} O-O {[%emt 0:00:46]} 8. Qc2 {[%emt 0:00:27]} Re8+ {[%emt 0:00:55]} 9. Be3 {[%emt 0:00:34]} g6 {[%emt 0:00:46]} 10. Ne2 {[%emt 0:09:07]} f5 {[%emt 0:03:05]} 11. O-O-O {[%emt 0:04:36]} Qa5 {[%emt 0:05:35]} 12. Kb1 {[%emt 0:04:45]} Be6 {[%emt 0:02:53]} 13. c4 {[%emt 0:17:06]} Na6 {[%emt 0:12:39]} 14. a3 {[%emt 0:00:29]} Bf8 {[%emt 0:10:16]} 15. h4 {[%emt 0:03:58]} b5 {[%emt 0:03:52]} 16. d5 {[%emt 0:06:47]} cxd5 {[%emt 0:02:15]} 17. cxb5 {[%emt 0:00:34]} Rac8 {[%emt 0:01:06]} 18. Qd2 {[%emt 0:05:51]} Bb4 {[%emt 0:25:19]} 19. axb4 {[%emt 0:03:36]} Nxb4 {[%emt 0:00:02]} 20. b3 {[%emt 0:10:37]} Rc2 {[%emt 0:00:12]} 21. Qxc2 {[%emt 0:00:08]} Nxc2 {[%emt 0:00:04]} 22. Bxc2 {[%emt 0:00:10]} Qxb5 {[%emt 0:00:15]} 23. Nd4 {[%emt 0:01:00]} Qb8 {[%emt 0:00:44]} 24. h5 {[%emt 0:05:59]} Bd7 {[%emt 0:02:01]} 25. hxg6 {[%emt 0:04:20]} fxg6 {[%emt 0:00:02]} 26. Rh6 {[%emt 0:00:07]} a5 {[%emt 0:00:28]} 27. Rdh1 {[%emt 0:00:49]} Re7 {[%emt 0:00:02]} 28. Bg5 {[%emt 0:00:19]} Rf7 {[%emt 0:00:24]} 29. Bc1 {[%emt 0:00:26]} Qb4 {[%emt 0:03:43]} 30. Bb2 {[%emt 0:06:56]} Re7 {[%emt 0:00:25]} 31. Nf3 {[%emt 0:01:42]} Be8 {[%emt 0:05:09]} 32. R6h4 {[%emt 0:02:22]} Qb6 {[%emt 0:03:00]} 33. Nd4 {[%emt 0:05:14]} h5 {[%emt 0:01:48]} 34. R4h3 {[%emt 0:00:11]} Qb4 {[%emt 0:01:16]} 35. Bc3 {[%emt 0:00:55]} Qb6 {[%emt 0:02:34]} 36. Rg3 {[%emt 0:00:35]} Kf7 {[%emt 0:03:00]} 37. Bxf5 {[%emt 0:03:40]} gxf5 {[%emt 0:00:59]} 38. Rxh5 {[%emt 0:00:01]} Re5 {[%emt 0:04:38]} 39. Rh7+ {[%emt 0:02:51]} Kf8 {[%emt 0:00:02]} 40. Rh8+ {[%emt 0:01:43]} Kf7 {[%emt 0:06:25]} 41. Rh7+ {[%emt 0:37:54]} Kf8 {[%emt 0:20:07]} 42. Bb2 {[%emt 0:00:48]} Qb4 {[%emt 0:11:56]} 43. Nc2 {[%emt 0:02:35]} f4 {[%emt 0:01:24]} 44. Rh8+ {[%emt 0:00:35]} Kf7 {[%emt 0:01:18]} 45. Rg7+ {[%emt 0:00:25]} 1-0

[Event "FIDE Womens Grand Swiss 2023"]
[Site "Douglas/Isle of Man"]
[Date "2023.11.02"]
[Round "8.21"]
[White "Roebers, Eline"]
[Black "Sandu, Mihaela"]
[Result "1-0"]
[ECO "E90"]
[WhiteElo "2390"]
[BlackElo "2298"]
[Annotator "ChessBase"]
[PlyCount "99"]
[EventDate "2023.10.04"]
[EventType "swiss"]
[EventCountry "GBR"]
[SourceTitle "playchess.com"]
[Source "ChessBase"]
[SourceQuality "1"]
[TimeControl "40/6000+30:20/3000+30:900+30"]

1. d4 {[%emt 0:10:03]} c5 {[%emt 0:11:33]} 2. d5 {[%emt 0:00:19]} Nf6 {[%emt 0:02:38]} 3. c4 {[%emt 0:00:06]} g6 {[%emt 0:00:30]} 4. Nc3 {[%emt 0:00:28]} d6 {[%emt 0:00:05]} 5. e4 {[%emt 0:01:07]} Bg7 {[%emt 0:00:09]} 6. Nf3 {[%emt 0:01:54]} a6 {[%emt 0:13:08]} 7. a4 {[%emt 0:01:59]} O-O {[%emt 0:00:49]} 8. Bd3 {[%emt 0:09:07]} e5 {[%emt 0:01:10]} 9. h3 {[%emt 0:17:44]} Nh5 {[%emt 0:02:10]} 10. Bc2 {[%emt 0:00:13]} Nf4 {[%emt 0:07:14]} 11. g3 {[%emt 0:01:10]} Nxh3 {[%emt 0:05:14]} 12. Be3 {[%emt 0:08:17]} Bg4 {[%emt 0:02:33]} 13. Bd3 {[%emt 0:11:38]} f5 {[%emt 0:14:21]} 14. exf5 {[%emt 0:07:30]} gxf5 {[%emt 0:00:36]} 15. Rxh3 {[%emt 0:00:32]} Bxh3 {[%emt 0:03:09]} 16. Ng5 {[%emt 0:00:08]} Bg4 {[%emt 0:03:00]} 17. f3 {[%emt 0:02:54]} e4 {[%emt 0:08:54]} 18. fxg4 {[%emt 0:02:33]} exd3 {[%emt 0:00:18]} 19. Ne6 {[%emt 0:00:47]} Qe7 {[%emt 0:17:17]} 20. Qxd3 {[%emt 0:00:21]} Nd7 {[%emt 0:01:04]} 21. gxf5 {[%emt 0:01:14]} Rf7 {[%emt 0:02:28]} 22. O-O-O {[%emt 0:01:34]} b5 {[%emt 0:02:47]} 23. g4 {[%emt 0:04:30]} Ne5 {[%emt 0:00:38]} 24. Qe4 {[%emt 0:00:45]} bxc4 {[%emt 0:01:11]} 25. g5 {[%emt 0:05:51]} Nd3+ {[%emt 0:00:10]} 26. Rxd3 {[%emt 0:03:45]} cxd3 {[%emt 0:00:04]} 27. f6 {[%emt 0:02:45]} Bxf6 {[%emt 0:01:02]} 28. gxf6 {[%emt 0:00:04]} Qxf6 {[%emt 0:00:05]} 29. Qg4+ {[%emt 0:00:40]} Kh8 {[%emt 0:02:02]} 30. Ne4 {[%emt 0:01:18]} Qf1+ {[%emt 0:00:27]} 31. Qd1 {[%emt 0:01:29]} Rb8 {[%emt 0:05:16]} 32. Nxd6 {[%emt 0:00:42]} Qxd1+ {[%emt 0:01:12]} 33. Kxd1 {[%emt 0:00:04]} Rf1+ {[%emt 0:00:16]} 34. Kd2 {[%emt 0:00:07]} Rxb2+ {[%emt 0:00:21]} 35. Kxd3 {[%emt 0:01:07]} Rb3+ {[%emt 0:03:12]} 36. Ke4 {[%emt 0:02:02]} h5 {[%emt 0:00:47]} 37. Nf4 {[%emt 0:02:32]} Re1 {[%emt 0:00:25]} 38. Nf5 {[%emt 0:00:40]} Rb4+ {[%emt 0:00:32]} 39. Kf3 {[%emt 0:02:11]} Rf1+ {[%emt 0:00:33]} 40. Kg3 {[%emt 0:00:10]} Rxa4 {[%emt 0:00:36]} 41. d6 {[%emt 0:54:45]} Ra3 {[%emt 0:26:06]} 42. Kg2 {[%emt 0:00:00]} Rxe3 {[%emt 0:03:09]} 43. Kxf1 {[%emt 0:00:00]} Re8 {[%emt 0:04:08]} 44. Ne6 {[%emt 0:00:00]} c4 {[%emt 0:02:39]} 45. d7 {[%emt 0:00:00]} Rb8 {[%emt 0:00:06]} 46. Ne7 {[%emt 0:00:00]} c3 {[%emt 0:00:20]} 47. Nc8 {[%emt 0:00:00]} Rb1+ {[%emt 0:00:05]} 48. Ke2 {[%emt 0:00:00]} Rb2+ {[%emt 0:00:02]} 49. Ke3 {[%emt 0:00:00]} Rd2 {[%emt 0:00:03]} 50. Nd4 {[%emt 0:00:00]} 1-0

[Event "FIDE Womens Grand Swiss 2023"]
[Site "Douglas/Isle of Man"]
[Date "2023.11.02"]
[Round "8.22"]
[White "Beydullayeva, Govhar"]
[Black "Arakhamia-Grant, Ketevan"]
[Result "1-0"]
[ECO "E62"]
[WhiteElo "2383"]
[BlackElo "2297"]
[Annotator "ChessBase"]
[PlyCount "81"]
[EventDate "2023.10.04"]
[EventType "swiss"]
[EventCountry "GBR"]
[SourceTitle "playchess.com"]
[Source "ChessBase"]
[SourceQuality "1"]
[TimeControl "40/6000+30:20/3000+30:900+30"]

1. Nf3 {[%emt 0:10:03]} Nf6 {[%emt 0:10:10]} 2. g3 {[%emt 0:00:06]} g6 {[%emt 0:06:31]} 3. d4 {[%emt 0:00:16]} Bg7 {[%emt 0:00:45]} 4. c4 {[%emt 0:00:11]} O-O {[%emt 0:01:55]} 5. Bg2 {[%emt 0:00:04]} d6 {[%emt 0:00:39]} 6. Nc3 {[%emt 0:00:04]} c6 {[%emt 0:00:27]} 7. O-O {[%emt 0:00:38]} Bf5 {[%emt 0:00:40]} 8. Nh4 {[%emt 0:12:38]} Be6 {[%emt 0:00:14]} 9. d5 {[%emt 0:02:10]} cxd5 {[%emt 0:00:07]} 10. cxd5 {[%emt 0:00:05]} Bd7 {[%emt 0:00:07]} 11. Be3 {[%emt 0:08:10]} a5 {[%emt 0:05:33]} 12. a4 {[%emt 0:08:58]} Na6 {[%emt 0:00:21]} 13. Nf3 {[%emt 0:02:21]} Rc8 {[%emt 0:05:13]} 14. h3 {[%emt 0:02:05]} Nc5 {[%emt 0:25:49]} 15. Nd4 {[%emt 0:07:26]} Ne8 {[%emt 0:06:46]} 16. Nb3 {[%emt 0:17:33]} Qb6 {[%emt 0:12:54]} 17. Ra3 {[%emt 0:01:48]} Qa6 {[%emt 0:03:43]} 18. Nxc5 {[%emt 0:07:36]} dxc5 {[%emt 0:00:07]} 19. Bg5 {[%emt 0:00:45]} f6 {[%emt 0:01:26]} 20. Bf4 {[%emt 0:04:23]} Nd6 {[%emt 0:09:45]} 21. e4 {[%emt 0:00:10]} Rfd8 {[%emt 0:07:06]} 22. Re1 {[%emt 0:00:38]} e5 {[%emt 0:01:07]} 23. dxe6 {[%emt 0:02:04]} Bxe6 {[%emt 0:00:05]} 24. Nd5 {[%emt 0:02:04]} Nf7 {[%emt 0:03:17]} 25. g4 {[%emt 0:03:55]} c4 {[%emt 0:01:54]} 26. Qe2 {[%emt 0:04:31]} Rd7 {[%emt 0:00:24]} 27. Bg3 {[%emt 0:02:11]} Ne5 {[%emt 0:02:52]} 28. Bxe5 {[%emt 0:00:25]} fxe5 {[%emt 0:00:04]} 29. g5 {[%emt 0:00:05]} Qa7 {[%emt 0:01:49]} 30. h4 {[%emt 0:01:09]} Rf7 {[%emt 0:01:28]} 31. Bh3 {[%emt 0:02:03]} Bxh3 {[%emt 0:01:32]} 32. Rxh3 {[%emt 0:00:01]} Rcf8 {[%emt 0:00:10]} 33. Rf1 {[%emt 0:00:49]} Qc5 {[%emt 0:00:39]} 34. h5 {[%emt 0:03:46]} gxh5 {[%emt 0:01:14]} 35. Qxh5 {[%emt 0:00:26]} Bh8 {[%emt 0:00:19]} 36. Ne3 {[%emt 0:02:24]} Qc6 {[%emt 0:00:40]} 37. Nf5 {[%emt 0:01:32]} Qg6 {[%emt 0:00:33]} 38. Qxg6+ {[%emt 0:00:23]} hxg6 {[%emt 0:00:05]} 39. Nh6+ {[%emt 0:00:03]} Kg7 {[%emt 0:00:07]} 40. Nxf7 {[%emt 0:00:02]} Rxf7 {[%emt 0:00:08]} 41. Rc1 {[%emt 0:50:16]} 1-0